[Event "*** Titled Tuesday Blitz"]
[Site "Chess.com"]
[Date "2021.02.16"]
[Round "7"]
[White "bocah_sakit"]
[Black "PaulfromSPb"]
[Result "1-0"]
[WhiteElo "2842"]
[BlackElo "2609"]
[TimeControl "180+1"]
[EndTime "11:16:35 PST"]
[Termination "bocah_sakit won by resignation"]

1. e4 {[%clk 0:03:00.9]} 1... c5 {[%clk 0:02:57.5]} 2. Nf3 {[%clk 0:03:00.3]}
2... a6 {[%clk 0:02:57.4]} 3. Nc3 {[%clk 0:02:59.7]} 3... b5 {[%clk 0:02:56.6]}
4. d4 {[%clk 0:03:00.3]} 4... b4 {[%clk 0:02:56.6]} 5. Nd5 {[%clk 0:02:59.9]}
5... e6 {[%clk 0:02:57.1]} 6. Ne3 {[%clk 0:02:59.9]} 6... Bb7 {[%clk 0:02:57.4]}
7. d5 {[%clk 0:02:58]} 7... Nf6 {[%clk 0:02:56.6]} 8. dxe6 {[%clk 0:02:47.9]}
8... dxe6 {[%clk 0:02:55.5]} 9. Qxd8+ {[%clk 0:02:42.8]} 9... Kxd8 {[%clk
0:02:56.4]} 10. Ne5 {[%clk 0:02:41.3]} 10... Ke8 {[%clk 0:02:55.2]} 11. f3
{[%clk 0:02:39.1]} 11... Nc6 {[%clk 0:02:55.3]} 12. N5c4 {[%clk 0:02:34.8]}
12... Rd8 {[%clk 0:02:50.4]} 13. a3 {[%clk 0:02:34.5]} 13... Nd7 {[%clk
0:02:44.8]} 14. axb4 {[%clk 0:02:26.4]} 14... cxb4 {[%clk 0:02:45.7]} 15. Be2
{[%clk 0:02:24.3]} 15... Bc5 {[%clk 0:02:44.7]} 16. Na5 {[%clk 0:01:46.6]} 16...
Nxa5 {[%clk 0:02:35.5]} 17. Rxa5 {[%clk 0:01:47.5]} 17... Bb6 {[%clk 0:02:32.7]}
18. Ra4 {[%clk 0:01:46.9]} 18... a5 {[%clk 0:02:31.6]} 19. Bb5 {[%clk
0:01:44.6]} 19... Ke7 {[%clk 0:02:28.8]} 20. Nc4 {[%clk 0:01:44.2]} 20... Bc7
{[%clk 0:02:27.6]} 21. Nxa5 {[%clk 0:01:42.9]} 21... Bxa5 {[%clk 0:02:06.3]} 22.
Rxa5 {[%clk 0:01:43.8]} 22... Ra8 {[%clk 0:02:06.8]} 23. Bd2 {[%clk 0:01:35]}
23... b3 {[%clk 0:01:57.2]} 24. cxb3 {[%clk 0:01:34.1]} 24... Rxa5 {[%clk
0:01:50.9]} 25. Bxa5 {[%clk 0:01:35]} 25... Ra8 {[%clk 0:01:50.8]} 26. Bb4+
{[%clk 0:01:34.8]} 26... Kf6 {[%clk 0:01:50.9]} 27. Kf2 {[%clk 0:01:30.7]} 27...
Nb6 {[%clk 0:01:42]} 28. Rc1 {[%clk 0:01:25.5]} 28... Ra2 {[%clk 0:01:36.3]} 29.
Kg3 {[%clk 0:01:21]} 29... Kg6 {[%clk 0:01:31.7]} 30. Rc7 {[%clk 0:01:20.1]}
30... Ba6 {[%clk 0:01:30]} 31. Ra7 {[%clk 0:01:16.1]} 31... Rxb2 {[%clk
0:01:26.6]} 32. Rxa6 {[%clk 0:01:15.1]} 32... Rxb3 {[%clk 0:01:26.6]} 33. Rxb6
{[%clk 0:01:12.6]} 33... Rxb4 {[%clk 0:01:27.1]} 34. e5 {[%clk 0:01:10.7]} 34...
Kg5 {[%clk 0:01:25]} 35. Rb7 {[%clk 0:01:07.4]} 35... h5 {[%clk 0:01:24.7]} 36.
h4+ {[%clk 0:01:05.4]} 36... Kh6 {[%clk 0:01:23.5]} 37. Bc6 {[%clk 0:01:05.4]}
37... Rc4 {[%clk 0:01:22.9]} 38. Be4 {[%clk 0:01:05.3]} 1-0

[Event "*** Titled Tuesday Blitz"]
[Site "Chess.com"]
[Date "2021.02.16"]
[Round "7"]
[White "ChainsOfFantasia"]
[Black "ChronicUnhappiness"]
[Result "1-0"]
[WhiteElo "2484"]
[BlackElo "2321"]
[TimeControl "180+1"]
[EndTime "11:16:39 PST"]
[Termination "ChainsOfFantasia won by resignation"]

1. d4 {[%clk 0:03:00.9]} 1... Nf6 {[%clk 0:03:00.9]} 2. c4 {[%clk 0:03:00.5]}
2... e6 {[%clk 0:03:01.1]} 3. Nf3 {[%clk 0:03:00.5]} 3... d5 {[%clk 0:02:59.7]}
4. Nc3 {[%clk 0:03:00.8]} 4... Bb4 {[%clk 0:02:58.7]} 5. Bg5 {[%clk 0:02:58]}
5... h6 {[%clk 0:02:56.6]} 6. Bxf6 {[%clk 0:02:58]} 6... Qxf6 {[%clk 0:02:55.8]}
7. e3 {[%clk 0:02:58.9]} 7... O-O {[%clk 0:02:53.7]} 8. Rc1 {[%clk 0:02:59.5]}
8... dxc4 {[%clk 0:02:49.3]} 9. Bxc4 {[%clk 0:02:58.3]} 9... c5 {[%clk
0:02:49.6]} 10. O-O {[%clk 0:02:58.8]} 10... cxd4 {[%clk 0:02:43.9]} 11. Ne4
{[%clk 0:02:58]} 11... Qe7 {[%clk 0:02:42.6]} 12. Qxd4 {[%clk 0:02:56.2]} 12...
Nc6 {[%clk 0:02:40.5]} 13. Qd3 {[%clk 0:02:46.6]} 13... Rd8 {[%clk 0:02:40]} 14.
Qe2 {[%clk 0:02:45.9]} 14... Bd7 {[%clk 0:02:35.9]} 15. a3 {[%clk 0:02:44]}
15... Ba5 {[%clk 0:02:33.9]} 16. b4 {[%clk 0:02:43.8]} 16... Bb6 {[%clk
0:02:33.1]} 17. Rfd1 {[%clk 0:02:36.4]} 17... Be8 {[%clk 0:02:32]} 18. Bd3
{[%clk 0:02:30.9]} 18... Rac8 {[%clk 0:02:25.2]} 19. h4 {[%clk 0:02:29.7]} 19...
f5 {[%clk 0:01:53.2]} 20. Ng3 {[%clk 0:02:20.9]} 20... Bf7 {[%clk 0:01:42.7]}
21. b5 {[%clk 0:02:16.1]} 21... Na5 {[%clk 0:01:38.6]} 22. Ne5 {[%clk
0:02:16.2]} 22... Qxh4 {[%clk 0:01:18.3]} 23. Bb1 {[%clk 0:02:07.8]} 23... Be8
{[%clk 0:01:08.1]} 24. Ba2 {[%clk 0:02:01.4]} 24... Qf6 {[%clk 0:01:07.5]} 25.
f4 {[%clk 0:02:00.9]} 25... Bc7 {[%clk 0:00:30.6]} 26. Rxd8 {[%clk 0:01:55]}
26... Rxd8 {[%clk 0:00:12]} 27. Rxc7 {[%clk 0:01:54]} 27... Bxb5 {[%clk
0:00:10.6]} 28. Qxb5 {[%clk 0:01:52]} 28... Rd1+ {[%clk 0:00:10.2]} 29. Nf1
{[%clk 0:01:51.8]} 1-0

[Event "*** Titled Tuesday Blitz"]
[Site "Chess.com"]
[Date "2021.02.16"]
[Round "7"]
[White "IngOscarArdila"]
[Black "BvsN"]
[Result "1-0"]
[WhiteElo "2172"]
[BlackElo "2352"]
[TimeControl "180+1"]
[EndTime "11:16:46 PST"]
[Termination "IngOscarArdila won by checkmate"]

1. d4 {[%clk 0:02:58]} 1... d5 {[%clk 0:02:59.9]} 2. Nf3 {[%clk 0:02:56.6]} 2...
Nf6 {[%clk 0:02:59.8]} 3. g3 {[%clk 0:02:56.7]} 3... Bf5 {[%clk 0:02:59.3]} 4.
Bg2 {[%clk 0:02:57]} 4... e6 {[%clk 0:02:59.6]} 5. O-O {[%clk 0:02:57]} 5... h6
{[%clk 0:02:59.4]} 6. c3 {[%clk 0:02:57.1]} 6... c6 {[%clk 0:02:56.6]} 7. Nbd2
{[%clk 0:02:57.4]} 7... Nbd7 {[%clk 0:02:56.2]} 8. Re1 {[%clk 0:02:57.9]} 8...
Bd6 {[%clk 0:02:54.8]} 9. Nh4 {[%clk 0:02:51]} 9... Bh7 {[%clk 0:02:53.9]} 10.
e4 {[%clk 0:02:37.6]} 10... dxe4 {[%clk 0:02:54.2]} 11. Nxe4 {[%clk 0:02:37.4]}
11... Nxe4 {[%clk 0:02:54.5]} 12. Bxe4 {[%clk 0:02:36.8]} 12... Bxe4 {[%clk
0:02:54.8]} 13. Rxe4 {[%clk 0:02:36.7]} 13... Nf6 {[%clk 0:02:51.3]} 14. Re1
{[%clk 0:02:32.7]} 14... O-O {[%clk 0:02:51.4]} 15. Qf3 {[%clk 0:02:30.2]} 15...
Rb8 {[%clk 0:02:42.9]} 16. Bd2 {[%clk 0:02:28.3]} 16... c5 {[%clk 0:02:42.3]}
17. dxc5 {[%clk 0:02:25.3]} 17... Bxc5 {[%clk 0:02:38]} 18. Rad1 {[%clk
0:02:25.9]} 18... Nd7 {[%clk 0:02:01.3]} 19. Bf4 {[%clk 0:02:19.2]} 19... e5
{[%clk 0:01:46.6]} 20. Bc1 {[%clk 0:02:15.5]} 20... Be7 {[%clk 0:01:06.5]} 21.
Nf5 {[%clk 0:02:12.8]} 21... Bf6 {[%clk 0:00:54.7]} 22. Qg4 {[%clk 0:01:54.2]}
22... Bg5 {[%clk 0:00:42.6]} 23. Rxd7 {[%clk 0:01:48.2]} 23... Qxd7 {[%clk
0:00:36.6]} 24. Nxh6+ {[%clk 0:01:46.9]} 24... Bxh6 {[%clk 0:00:33.9]} 25. Qxd7
{[%clk 0:01:46.6]} 25... Bxc1 {[%clk 0:00:33.9]} 26. Rxc1 {[%clk 0:01:45.7]}
26... Rbd8 {[%clk 0:00:34.8]} 27. Qf5 {[%clk 0:01:40.6]} 27... Rd2 {[%clk
0:00:33.3]} 28. Rc2 {[%clk 0:01:41]} 28... Rd1+ {[%clk 0:00:33]} 29. Kg2 {[%clk
0:01:40.4]} 29... Rfd8 {[%clk 0:00:33.9]} 30. Qxe5 {[%clk 0:01:39.6]} 30... Ra1
{[%clk 0:00:32.4]} 31. a3 {[%clk 0:01:39.1]} 31... Rdd1 {[%clk 0:00:32.5]} 32.
h3 {[%clk 0:01:38.6]} 32... Kh7 {[%clk 0:00:32.2]} 33. Qh5+ {[%clk 0:01:37.5]}
33... Kg8 {[%clk 0:00:31.9]} 34. Re2 {[%clk 0:01:36.5]} 34... Kf8 {[%clk
0:00:30.8]} 35. Qh8# {[%clk 0:01:34.5]} 1-0

[Event "*** Titled Tuesday Blitz"]
[Site "Chess.com"]
[Date "2021.02.16"]
[Round "7"]
[White "jacky72"]
[Black "CSB7"]
[Result "1/2-1/2"]
[WhiteElo "2694"]
[BlackElo "2544"]
[TimeControl "180+1"]
[EndTime "11:16:49 PST"]
[Termination "Game drawn by agreement"]

1. d4 {[%clk 0:03:00.9]} 1... Nf6 {[%clk 0:02:59.6]} 2. c4 {[%clk 0:03:01.3]}
2... g6 {[%clk 0:03:00]} 3. Nc3 {[%clk 0:03:01.3]} 3... d5 {[%clk 0:03:00.4]} 4.
Nf3 {[%clk 0:03:01.8]} 4... Bg7 {[%clk 0:03:00]} 5. h4 {[%clk 0:03:02.4]} 5...
dxc4 {[%clk 0:02:51.1]} 6. e4 {[%clk 0:03:01.6]} 6... c5 {[%clk 0:02:50]} 7. d5
{[%clk 0:03:01.9]} 7... O-O {[%clk 0:02:45.7]} 8. Bxc4 {[%clk 0:02:57.5]} 8...
b5 {[%clk 0:02:45.4]} 9. Bxb5 {[%clk 0:02:53.5]} 9... Nxe4 {[%clk 0:02:45]} 10.
Nxe4 {[%clk 0:02:49.6]} 10... Qa5+ {[%clk 0:02:45.1]} 11. Nc3 {[%clk 0:02:50.2]}
11... Bxc3+ {[%clk 0:02:45.1]} 12. bxc3 {[%clk 0:02:51.1]} 12... Qxb5 {[%clk
0:02:46]} 13. Bg5 {[%clk 0:02:32.5]} 13... Qc4 {[%clk 0:02:04.6]} 14. Bxe7
{[%clk 0:02:18.6]} 14... Re8 {[%clk 0:02:00.8]} 15. d6 {[%clk 0:02:18.5]} 15...
Nc6 {[%clk 0:01:42.9]} 16. Nd2 {[%clk 0:02:10.9]} 16... Qe6+ {[%clk 0:01:24.7]}
17. Qe2 {[%clk 0:01:51.2]} 17... Nxe7 {[%clk 0:01:14.2]} 18. Qxe6 {[%clk
0:01:47.4]} 18... Bxe6 {[%clk 0:01:11.8]} 19. dxe7 {[%clk 0:01:47.5]} 19... Rxe7
{[%clk 0:01:11.1]} 20. O-O {[%clk 0:01:42.2]} 20... Rd8 {[%clk 0:01:01.9]} 21.
Nb3 {[%clk 0:01:41.8]} 21... Bxb3 {[%clk 0:00:50.8]} 22. axb3 {[%clk 0:01:41.7]}
22... Rd3 {[%clk 0:00:51.3]} 23. Rfc1 {[%clk 0:01:39]} 23... Rb7 {[%clk
0:00:48]} 24. h5 {[%clk 0:01:29.8]} 24... Kg7 {[%clk 0:00:42.4]} 25. hxg6 {[%clk
0:01:28.6]} 25... hxg6 {[%clk 0:00:43.3]} 26. b4 {[%clk 0:01:25]} 26... cxb4
{[%clk 0:00:37.9]} 27. cxb4 {[%clk 0:01:25.9]} 27... Rd4 {[%clk 0:00:32]} 28. b5
{[%clk 0:01:23.1]} 28... Rd5 {[%clk 0:00:30.8]} 29. Rcb1 {[%clk 0:01:23.5]}
29... Rdxb5 {[%clk 0:00:30.4]} 30. Rxb5 {[%clk 0:01:23.7]} 30... Rxb5 {[%clk
0:00:31.3]} 31. Rxa7 {[%clk 0:01:24.2]} 1/2-1/2

[Event "*** Titled Tuesday Blitz"]
[Site "Chess.com"]
[Date "2021.02.16"]
[Round "7"]
[White "Kislov_Oleg"]
[Black "PavelShkapenko"]
[Result "0-1"]
[WhiteElo "2537"]
[BlackElo "2706"]
[TimeControl "180+1"]
[EndTime "11:16:55 PST"]
[Termination "PavelShkapenko won by resignation"]

1. e4 {[%clk 0:03:00.9]} 1... e5 {[%clk 0:02:58.2]} 2. Nf3 {[%clk 0:03:00.4]}
2... Nc6 {[%clk 0:02:58.3]} 3. d4 {[%clk 0:03:00.5]} 3... exd4 {[%clk
0:02:57.9]} 4. Nxd4 {[%clk 0:03:01.4]} 4... Bc5 {[%clk 0:02:57.1]} 5. Be3 {[%clk
0:03:01]} 5... Qf6 {[%clk 0:02:56.5]} 6. c3 {[%clk 0:03:00.7]} 6... Nge7 {[%clk
0:02:56]} 7. Bc4 {[%clk 0:02:59.2]} 7... O-O {[%clk 0:02:54.9]} 8. Nc2 {[%clk
0:02:58.1]} 8... Bb6 {[%clk 0:02:51.5]} 9. O-O {[%clk 0:02:55.7]} 9... Qg6
{[%clk 0:02:49.3]} 10. Nd2 {[%clk 0:02:52.5]} 10... d6 {[%clk 0:02:34.5]} 11. f4
{[%clk 0:02:44.7]} 11... Kh8 {[%clk 0:02:29.9]} 12. f5 {[%clk 0:02:30.9]} 12...
Qg5 {[%clk 0:02:23.4]} 13. Qe2 {[%clk 0:02:17.6]} 13... Bxe3+ {[%clk 0:02:14.2]}
14. Nxe3 {[%clk 0:02:14.1]} 14... Ne5 {[%clk 0:02:13.6]} 15. Nf3 {[%clk
0:02:11]} 15... Nxf3+ {[%clk 0:02:11.6]} 16. Rxf3 {[%clk 0:02:05.9]} 16... Qh4
{[%clk 0:01:51.6]} 17. Rh3 {[%clk 0:01:55.9]} 17... Qxe4 {[%clk 0:01:40]} 18.
Qh5 {[%clk 0:01:36.8]} 18... Bxf5 {[%clk 0:01:34.9]} 19. Nxf5 {[%clk 0:01:20.1]}
19... Qxf5 {[%clk 0:01:34.6]} 20. Qxf5 {[%clk 0:01:20.2]} 20... Nxf5 {[%clk
0:01:34.5]} 21. Bd3 {[%clk 0:01:20.9]} 21... Nh6 {[%clk 0:01:11.7]} 22. Rh5
{[%clk 0:01:12.9]} 22... Rae8 {[%clk 0:01:08.2]} 23. h3 {[%clk 0:01:06.3]} 23...
Re5 {[%clk 0:01:05.8]} 24. Rxe5 {[%clk 0:01:00.2]} 24... dxe5 {[%clk 0:01:05.5]}
25. Be4 {[%clk 0:01:00.8]} 25... Rd8 {[%clk 0:01:02.3]} 26. Bxb7 {[%clk
0:00:59.2]} 26... Rb8 {[%clk 0:00:56]} 27. Rd1 {[%clk 0:00:46]} 27... Rxb7
{[%clk 0:00:55.9]} 0-1

[Event "*** Titled Tuesday Blitz"]
[Site "Chess.com"]
[Date "2021.02.16"]
[Round "7"]
[White "Cuajada_Zero"]
[Black "Evachess2006"]
[Result "1-0"]
[WhiteElo "2238"]
[BlackElo "1606"]
[TimeControl "180+1"]
[EndTime "11:16:55 PST"]
[Termination "Cuajada_Zero won by resignation"]

1. d4 {[%clk 0:03:00.9]} 1... d5 {[%clk 0:02:59.6]} 2. c4 {[%clk 0:03:00.6]}
2... dxc4 {[%clk 0:02:59.4]} 3. e4 {[%clk 0:02:57.8]} 3... Nf6 {[%clk 0:02:59]}
4. e5 {[%clk 0:02:56.5]} 4... Nd5 {[%clk 0:02:59.2]} 5. Bxc4 {[%clk 0:02:57.1]}
5... Bf5 {[%clk 0:02:58.4]} 6. Ne2 {[%clk 0:02:32.1]} 6... e6 {[%clk 0:02:54.1]}
7. O-O {[%clk 0:02:31.6]} 7... Be7 {[%clk 0:02:53.1]} 8. Nbc3 {[%clk 0:02:31.7]}
8... Nxc3 {[%clk 0:02:52]} 9. bxc3 {[%clk 0:02:32.6]} 9... O-O {[%clk
0:02:52.1]} 10. Ng3 {[%clk 0:02:29.8]} 10... Bg6 {[%clk 0:02:50.9]} 11. Be3
{[%clk 0:02:29.8]} 11... Nd7 {[%clk 0:02:50.4]} 12. f4 {[%clk 0:02:28.2]} 12...
a6 {[%clk 0:02:46.2]} 13. f5 {[%clk 0:02:25.3]} 13... exf5 {[%clk 0:02:45.1]}
14. Nxf5 {[%clk 0:02:26.2]} 14... Bxf5 {[%clk 0:02:45.5]} 15. Rxf5 {[%clk
0:02:26.1]} 15... b5 {[%clk 0:02:43.3]} 16. Bb3 {[%clk 0:02:20.8]} 16... c5
{[%clk 0:02:40.3]} 17. Qf3 {[%clk 0:02:18.7]} 17... c4 {[%clk 0:02:38.5]} 18.
Bc2 {[%clk 0:02:18.5]} 18... Qc7 {[%clk 0:02:37.5]} 19. Rf1 {[%clk 0:02:16.9]}
19... f6 {[%clk 0:02:36.3]} 20. Rh5 {[%clk 0:02:09.4]} 20... g6 {[%clk
0:02:10.3]} 21. Rxh7 {[%clk 0:02:00.2]} 21... fxe5 {[%clk 0:01:49.2]} 22. Qh3
{[%clk 0:01:50.7]} 22... Rxf1+ {[%clk 0:01:45.5]} 23. Kxf1 {[%clk 0:01:51.6]}
23... Rf8+ {[%clk 0:01:33.3]} 24. Kg1 {[%clk 0:01:47]} 24... Nf6 {[%clk
0:01:23.8]} 25. Bxg6 {[%clk 0:01:25.5]} 25... Nd5 {[%clk 0:01:01.9]} 26. Qe6+
{[%clk 0:00:48.1]} 1-0

[Event "*** Titled Tuesday Blitz"]
[Site "Chess.com"]
[Date "2021.02.16"]
[Round "7"]
[White "Korchmar_Vasiliy"]
[Black "GigaQuparadze"]
[Result "0-1"]
[WhiteElo "2621"]
[BlackElo "2929"]
[TimeControl "180+1"]
[EndTime "11:17:04 PST"]
[Termination "GigaQuparadze won on time"]

1. e4 {[%clk 0:03:00.9]} 1... c5 {[%clk 0:03:00.3]} 2. Nf3 {[%clk 0:03:00.9]}
2... Nc6 {[%clk 0:03:01.1]} 3. d4 {[%clk 0:03:01.3]} 3... cxd4 {[%clk 0:03:02]}
4. Nxd4 {[%clk 0:03:01.9]} 4... Qc7 {[%clk 0:03:02.5]} 5. Nc3 {[%clk 0:03:01.5]}
5... e6 {[%clk 0:03:02.7]} 6. g3 {[%clk 0:03:01.5]} 6... Nf6 {[%clk 0:03:01.7]}
7. Bg2 {[%clk 0:03:01.4]} 7... a6 {[%clk 0:03:02.1]} 8. O-O {[%clk 0:03:00.9]}
8... d6 {[%clk 0:03:02]} 9. Nb3 {[%clk 0:02:40.5]} 9... Bd7 {[%clk 0:03:00.6]}
10. Be3 {[%clk 0:02:33.2]} 10... Ne5 {[%clk 0:02:59.3]} 11. Qe2 {[%clk
0:02:24.7]} 11... Be7 {[%clk 0:02:56.9]} 12. Rad1 {[%clk 0:02:24]} 12... O-O
{[%clk 0:02:55.5]} 13. f4 {[%clk 0:02:21.1]} 13... Nc4 {[%clk 0:02:54.6]} 14.
Bc1 {[%clk 0:02:21.3]} 14... b5 {[%clk 0:02:54.2]} 15. a3 {[%clk 0:02:03.7]}
15... Rac8 {[%clk 0:02:53.1]} 16. Rd3 {[%clk 0:01:39.8]} 16... Rfd8 {[%clk
0:02:49]} 17. g4 {[%clk 0:01:39.4]} 17... Be8 {[%clk 0:02:46.5]} 18. g5 {[%clk
0:01:37.3]} 18... Nd7 {[%clk 0:02:46.7]} 19. Rh3 {[%clk 0:01:30.5]} 19... Nf8
{[%clk 0:02:46.8]} 20. f5 {[%clk 0:01:27]} 20... d5 {[%clk 0:02:38.8]} 21. f6
{[%clk 0:01:04.9]} 21... Bc5+ {[%clk 0:02:38.6]} 22. Nxc5 {[%clk 0:01:05.3]}
22... Qxc5+ {[%clk 0:02:39.5]} 23. Kh1 {[%clk 0:01:05.9]} 23... d4 {[%clk
0:02:39.3]} 24. fxg7 {[%clk 0:01:01.3]} 24... Kxg7 {[%clk 0:02:40.2]} 25. g6
{[%clk 0:00:20.4]} 25... Nxg6 {[%clk 0:02:31.6]} 26. Bh6+ {[%clk 0:00:09.4]}
26... Kg8 {[%clk 0:02:31.7]} 27. Nd1 {[%clk 0:00:05.3]} 27... Qe5 {[%clk
0:02:25.9]} 28. Nf2 {[%clk 0:00:04.4]} 28... Ne3 {[%clk 0:02:18.1]} 29. Bxe3
{[%clk 0:00:01.8]} 29... dxe3 {[%clk 0:02:17.9]} 30. Ng4 {[%clk 0:00:02.4]}
30... Qd4 {[%clk 0:02:02.8]} 31. Nf6+ {[%clk 0:00:01.9]} 31... Kf8 {[%clk
0:02:03.2]} 32. Nxh7+ {[%clk 0:00:01.9]} 32... Ke7 {[%clk 0:02:03.4]} 33. Rxe3
{[%clk 0:00:02.1]} 33... Qd2 {[%clk 0:01:59.8]} 34. Qf3 {[%clk 0:00:01.8]} 34...
Rxc2 {[%clk 0:01:51.3]} 35. Qf6+ {[%clk 0:00:01.1]} 35... Kd7 {[%clk 0:01:51.4]}
0-1

[Event "*** Titled Tuesday Blitz"]
[Site "Chess.com"]
[Date "2021.02.16"]
[Round "7"]
[White "esrosenberg"]
[Black "figo13"]
[Result "1-0"]
[WhiteElo "2121"]
[BlackElo "2286"]
[TimeControl "180+1"]
[EndTime "11:17:04 PST"]
[Termination "esrosenberg won by resignation"]

1. Nf3 {[%clk 0:03:00.9]} 1... Nf6 {[%clk 0:02:57]} 2. c4 {[%clk 0:03:01]} 2...
c5 {[%clk 0:02:56]} 3. d4 {[%clk 0:03:00.3]} 3... b6 {[%clk 0:02:56.9]} 4. d5
{[%clk 0:02:57.4]} 4... e6 {[%clk 0:02:55.8]} 5. Nc3 {[%clk 0:02:52.2]} 5...
exd5 {[%clk 0:02:54.6]} 6. Nxd5 {[%clk 0:02:41.8]} 6... Nxd5 {[%clk 0:02:51.1]}
7. Qxd5 {[%clk 0:02:40.3]} 7... Nc6 {[%clk 0:02:51.1]} 8. Ne5 {[%clk 0:02:24.4]}
8... Nxe5 {[%clk 0:02:40.6]} 9. Qxa8 {[%clk 0:02:07]} 9... Nxc4 {[%clk
0:02:40.4]} 10. Qe4+ {[%clk 0:02:04]} 10... Be7 {[%clk 0:02:33.6]} 11. Qxc4
{[%clk 0:02:03.8]} 11... d5 {[%clk 0:02:33.8]} 12. Qc2 {[%clk 0:01:47.3]} 12...
g6 {[%clk 0:02:31.5]} 13. Bh6 {[%clk 0:01:41.2]} 13... Bf5 {[%clk 0:02:30]} 14.
Qa4+ {[%clk 0:01:40.4]} 14... Bd7 {[%clk 0:02:30.1]} 15. Qxa7 {[%clk 0:01:35.6]}
15... Bf6 {[%clk 0:02:27.7]} 16. O-O-O {[%clk 0:01:26.9]} 16... Bc6 {[%clk
0:02:12.6]} 17. e4 {[%clk 0:00:55.5]} 17... Bg5+ {[%clk 0:01:47.5]} 18. Bxg5
{[%clk 0:00:54.4]} 18... Qxg5+ {[%clk 0:01:48.4]} 19. Rd2 {[%clk 0:00:47.6]}
19... O-O {[%clk 0:01:44.2]} 20. Qxb6 {[%clk 0:00:45.5]} 20... dxe4 {[%clk
0:01:30.8]} 21. Qxc6 {[%clk 0:00:23]} 21... Rd8 {[%clk 0:01:29.3]} 22. Bd3
{[%clk 0:00:23.4]} 22... Rxd3 {[%clk 0:01:27.5]} 23. Rd1 {[%clk 0:00:20]} 23...
Kg7 {[%clk 0:01:15.5]} 24. Qxe4 {[%clk 0:00:18.4]} 24... c4 {[%clk 0:01:10.1]}
25. f4 {[%clk 0:00:16.9]} 1-0

[Event "*** Titled Tuesday Blitz"]
[Site "Chess.com"]
[Date "2021.02.16"]
[Round "7"]
[White "PavelChernomordik"]
[Black "AliKa2810"]
[Result "0-1"]
[WhiteElo "2387"]
[BlackElo "2547"]
[TimeControl "180+1"]
[EndTime "11:17:05 PST"]
[Termination "AliKa2810 won by resignation"]

1. e4 {[%clk 0:03:00.7]} 1... c6 {[%clk 0:02:59.2]} 2. Nc3 {[%clk 0:03:00.1]}
2... d5 {[%clk 0:03:00.1]} 3. Qf3 {[%clk 0:02:59.9]} 3... dxe4 {[%clk 0:02:43]}
4. Nxe4 {[%clk 0:02:59]} 4... Nd7 {[%clk 0:02:42.6]} 5. Qe2 {[%clk 0:02:58.1]}
5... e6 {[%clk 0:02:41.9]} 6. d4 {[%clk 0:02:57.1]} 6... Ngf6 {[%clk 0:02:41.5]}
7. c3 {[%clk 0:02:55.6]} 7... Nxe4 {[%clk 0:02:40.7]} 8. Qxe4 {[%clk 0:02:55.4]}
8... Nf6 {[%clk 0:02:41.3]} 9. Qc2 {[%clk 0:02:55.1]} 9... h6 {[%clk 0:02:38.2]}
10. Nf3 {[%clk 0:02:53.3]} 10... Bd6 {[%clk 0:02:34.6]} 11. Bd3 {[%clk
0:02:51.3]} 11... O-O {[%clk 0:02:35.2]} 12. Bd2 {[%clk 0:02:49.5]} 12... c5
{[%clk 0:02:33]} 13. O-O-O {[%clk 0:02:44.3]} 13... cxd4 {[%clk 0:02:20.1]} 14.
Nxd4 {[%clk 0:02:43.2]} 14... a6 {[%clk 0:02:20]} 15. f4 {[%clk 0:02:27.5]}
15... Qc7 {[%clk 0:02:14]} 16. Rdf1 {[%clk 0:02:25]} 16... b5 {[%clk 0:02:10.2]}
17. g4 {[%clk 0:02:18.1]} 17... Nxg4 {[%clk 0:02:06.7]} 18. Rhg1 {[%clk
0:02:17.5]} 18... f5 {[%clk 0:02:05.3]} 19. Qb3 {[%clk 0:02:10]} 19... Qf7
{[%clk 0:01:57.4]} 20. Re1 {[%clk 0:02:03.3]} 20... e5 {[%clk 0:01:51.6]} 21.
fxe5 {[%clk 0:01:47.4]} 21... Nxe5 {[%clk 0:01:42.6]} 22. Bxf5 {[%clk
0:01:19.6]} 22... Qxb3 {[%clk 0:01:35.8]} 23. axb3 {[%clk 0:01:13.3]} 23... Bxf5
{[%clk 0:01:35.6]} 24. Bxh6 {[%clk 0:01:05.9]} 24... Nd3+ {[%clk 0:01:24]} 25.
Kd2 {[%clk 0:01:05.3]} 25... Nxe1 {[%clk 0:01:24.2]} 26. Bxg7 {[%clk 0:00:57]}
26... Bxh2 {[%clk 0:01:04.1]} 27. Rxe1 {[%clk 0:00:38.6]} 27... Kxg7 {[%clk
0:01:02.2]} 0-1

[Event "*** Titled Tuesday Blitz"]
[Site "Chess.com"]
[Date "2021.02.16"]
[Round "7"]
[White "Rsnr"]
[Black "igorcadilhac"]
[Result "1-0"]
[WhiteElo "2767"]
[BlackElo "2361"]
[TimeControl "180+1"]
[EndTime "11:17:07 PST"]
[Termination "Rsnr won by resignation"]

1. b3 {[%clk 0:03:00.9]} 1... e5 {[%clk 0:02:59.7]} 2. Bb2 {[%clk 0:03:01.4]}
2... Nc6 {[%clk 0:03:00.3]} 3. e3 {[%clk 0:03:01.8]} 3... Nf6 {[%clk 0:03:00.5]}
4. Bb5 {[%clk 0:03:01.4]} 4... Bd6 {[%clk 0:02:59.1]} 5. Na3 {[%clk 0:03:01.8]}
5... Na5 {[%clk 0:02:59.3]} 6. Be2 {[%clk 0:03:01.3]} 6... a6 {[%clk 0:02:54.6]}
7. Nf3 {[%clk 0:02:57.7]} 7... Qe7 {[%clk 0:02:52.8]} 8. Nb1 {[%clk 0:02:58.1]}
8... b5 {[%clk 0:02:50.2]} 9. d4 {[%clk 0:02:41]} 9... e4 {[%clk 0:02:37.9]} 10.
Nfd2 {[%clk 0:02:41]} 10... O-O {[%clk 0:02:27.4]} 11. c4 {[%clk 0:02:41]} 11...
bxc4 {[%clk 0:02:17.4]} 12. bxc4 {[%clk 0:02:41.9]} 12... c5 {[%clk 0:02:10.4]}
13. d5 {[%clk 0:02:42.2]} 13... Be5 {[%clk 0:02:02.1]} 14. Nc3 {[%clk
0:02:38.3]} 14... Rb8 {[%clk 0:01:59.3]} 15. Qc2 {[%clk 0:02:38.9]} 15... d6
{[%clk 0:01:38.5]} 16. Rb1 {[%clk 0:02:38.4]} 16... Bf5 {[%clk 0:01:38]} 17. O-O
{[%clk 0:02:34.3]} 17... Rb7 {[%clk 0:01:09.9]} 18. Na4 {[%clk 0:02:29.8]} 18...
Rfb8 {[%clk 0:00:59]} 19. Bxe5 {[%clk 0:02:24.2]} 19... Qxe5 {[%clk 0:00:59]}
20. Rxb7 {[%clk 0:02:23.3]} 20... Rxb7 {[%clk 0:00:57.3]} 21. Rb1 {[%clk
0:02:24]} 21... Bg4 {[%clk 0:00:47.4]} 22. Bf1 {[%clk 0:02:20.3]} 22... Bd7
{[%clk 0:00:46.9]} 23. Rxb7 {[%clk 0:02:19]} 23... Nxb7 {[%clk 0:00:46.6]} 24.
Nb6 {[%clk 0:02:18.7]} 24... Ng4 {[%clk 0:00:22.3]} 25. g3 {[%clk 0:02:19]}
25... Qh5 {[%clk 0:00:22]} 26. h3 {[%clk 0:02:10.7]} 26... Ne5 {[%clk
0:00:19.7]} 27. Nxd7 {[%clk 0:02:05.1]} 27... Nxd7 {[%clk 0:00:20.1]} 28. Qxe4
{[%clk 0:02:05.2]} 28... Kf8 {[%clk 0:00:16.7]} 29. Qb1 {[%clk 0:01:56.7]} 29...
Nd8 {[%clk 0:00:14.9]} 30. Ne4 {[%clk 0:01:57.1]} 30... Qe5 {[%clk 0:00:14]} 31.
Bd3 {[%clk 0:01:51.1]} 31... g6 {[%clk 0:00:13.6]} 32. f4 {[%clk 0:01:45.4]}
32... Qe7 {[%clk 0:00:13.1]} 33. Qb2 {[%clk 0:01:45.6]} 33... f6 {[%clk
0:00:11.6]} 34. Kf2 {[%clk 0:01:45.5]} 34... Kf7 {[%clk 0:00:12.1]} 35. g4
{[%clk 0:01:44.8]} 35... Nf8 {[%clk 0:00:05.9]} 36. Qb6 {[%clk 0:01:43.9]} 1-0